fUST/lending_fUST_20250603
["ID","MTS","AMOUNT","RATE_DAILY","PERIOD"]
[363880897,1748907051991,-797.96,0.00020547,2]
[363880898,1748907052001,-440.0,0.00020547,2]
[363880899,1748907052011,-4845.58,0.00020547,2]
[363880900,1748907052020,-735.8,0.00020547,2]
[363880901,1748907052030,-854.6,0.00020547,2]
[363880902,1748907052040,-440.0,0.00020547,2]
[363880903,1748907052049,-1199.73,0.00020547,2]
[363880904,1748907052062,-440.0,0.00020547,2]
[363880905,1748907052072,-440.0,0.00020547,2]
[363880906,1748907052082,-448.65,0.00020547,2]
[363880907,1748907052092,-215.0738,0.0002056,2]
[363880908,1748907052102,-634.13008028,0.00020568,2]
[363880909,1748907052112,-935.32117229,0.0002059,3]
[363880910,1748907052122,-701.71,0.00020599,2]
[363880911,1748907052132,-701.71,0.00020599,2]
[363880912,1748907052142,-701.71,0.00020599,2]
[363880913,1748907052152,-701.71,0.00020599,2]
[363880914,1748907052162,-701.8180297,0.00020599,2]
[363880915,1748907052172,-151.0,0.000206,2]
[363880916,1748907052183,-151.0,0.000206,2]
[363880917,1748907052193,-151.0,0.000206,2]
[363880918,1748907052204,-151.0,0.000206,2]
[363880919,1748907052214,-151.0,0.000206,2]
[363880920,1748907052224,-163.04634,0.000206,2]
[363880921,1748907052234,-163.04634,0.000206,2]
[363880922,1748907052243,-151.0,0.000206,2]
[363880923,1748907052252,-151.0,0.000206,2]
[363880924,1748907052262,-151.0,0.000206,2]
[363880925,1748907052272,-151.0,0.000206,2]
[363880926,1748907052282,-151.0,0.000206,2]
[363880927,1748907052292,-151.0,0.000206,2]
[363880928,1748907052302,-165.870742,0.000206,2]
[363880929,1748907052313,-151.0,0.000206,2]
[363880930,1748907052323,-151.0,0.000206,3]
[363880931,1748907052333,-207.8674,0.000206,2]
[363880932,1748907052343,-207.8674,0.000206,2]
[363880933,1748907052353,-6701.88,0.000206,2]
[363880934,1748907052363,-472.990524,0.000206,2]
[363880935,1748907052374,-472.990524,0.000206,2]
[363880936,1748907052384,-60107.65,0.000206,2]
[363880937,1748907052395,-286.129156,0.000206,2]
[363880938,1748907052405,-286.129156,0.000206,2]
[363880939,1748907052416,-373.158915,0.000206,2]
[363880940,1748907052427,-373.158915,0.000206,2]
[363880941,1748907052437,-5094.70234252,0.00020721,2]
[363880942,1748907052447,-935.32117229,0.00020797,4]
[363880943,1748907052457,-151.0,0.00020821,2]
[363880944,1748907052467,-151.0,0.00020821,2]
[363880945,1748907052478,-151.0,0.00020821,2]
[363880946,1748907052488,-151.0,0.00020821,2]
[363880947,1748907052498,-151.0,0.00020821,2]
[363880948,1748907052507,-151.0,0.00020821,2]
[363880949,1748907052517,-151.0,0.00020821,2]
[363880950,1748907052529,-151.0,0.00020821,2]
[363880951,1748907052538,-151.0,0.00020821,2]
[363880952,1748907052548,-206.847821,0.00020821,2]
[363880953,1748907052558,-206.847821,0.00020821,2]
[363880954,1748907052567,-440.0,0.00020821,2]
[363880955,1748907052578,-1240.54,0.00020821,2]
[363880956,1748907052588,-369.208876,0.00020821,2]
[363880957,1748907052599,-440.0,0.00020821,2]
[363880958,1748907052609,-369.208876,0.00020821,2]
[363880959,1748907052619,-2050.09,0.00020821,2]
[363880960,1748907052630,-1442.81,0.00020821,2]
[363880961,1748907052641,-1440.95,0.00020821,2]
[363880962,1748907052651,-2167.57,0.00020821,2]
[363880963,1748907052661,-2580.32,0.00020821,2]
[363880964,1748907052672,-1026.87,0.00020821,2]
[363880965,1748907052682,-565.49,0.00020821,2]
[363880966,1748907052705,-802.81,0.00020821,2]
[363880967,1748907052720,-440.0,0.00020821,2]
[363880968,1748907052739,-675.33,0.00020821,2]
[363880969,1748907052758,-440.0,0.00020821,2]
[363880970,1748907052773,-440.0,0.00020821,2]
[363880971,1748907052790,-504.7,0.00020821,2]
[363880972,1748907052808,-440.0,0.00020821,2]
[363880973,1748907052826,-440.0,0.00020821,2]
[363880974,1748907052844,-3944.08,0.00020821,2]
[363880975,1748907052862,-440.0,0.00020821,2]
[363880976,1748907052879,-440.0,0.00020821,2]
[363880977,1748907052897,-1686.91,0.00020821,2]
[363880978,1748907052915,-2043.01,0.00020821,2]
[363880979,1748907052929,-754.71,0.00020821,2]
[363880980,1748907052948,-797.96,0.00020821,2]
[363880981,1748907052963,-440.0,0.00020821,2]
[363880982,1748907052977,-4845.58,0.00020821,2]
[363880983,1748907052992,-735.8,0.00020821,2]
[363880984,1748907053005,-854.6,0.00020821,2]
[363880985,1748907053019,-323.72,0.00020821,2]
[363880986,1748907053033,-1199.73,0.00020821,2]
[363880987,1748907053049,-440.0,0.00020821,2]
[363880988,1748907053063,-440.0,0.00020821,2]
[363880989,1748907053077,-151.0,0.00020821,2]
[363880990,1748907053091,-448.65,0.00020821,2]
[363880991,1748907053105,-3000.0,0.00021,2]
[363880992,1748907053119,-935.32117229,0.00021003,4]
[363880993,1748907053132,-3000.0,0.0002101,2]
[363880994,1748907053147,-151.0,0.0002101,2]
[363880995,1748907053162,-151.0,0.0002101,2]
[363880996,1748907053176,-207.8674,0.0002101,2]
[363880997,1748907053190,-207.8674,0.0002101,2]
[363880998,1748907053204,-3000.0,0.0002102,2]
[363880999,1748907053218,-151.0,0.0002102,2]
[363881000,1748907053232,-412.842266,0.0002102,2]
[363881001,1748907053245,-151.0,0.0002102,2]
[363881002,1748907053260,-412.842266,0.0002102,2]
[363881003,1748907053274,-3000.0,0.0002103,2]
[363881004,1748907053288,-3000.0,0.0002104,2]
[363881005,1748907053303,-3000.0,0.0002105,2]
[363881006,1748907053318,-500.0,0.00021052,2]
[363881007,1748907053334,-500.0,0.00021052,2]
[363881008,1748907053350,-1200.0,0.00021052,2]
[363881009,1748907053366,-3000.0,0.0002106,2]
[363881010,1748907053376,-1000.0,0.0002106,2]
[363881011,1748907053386,-5094.70234244,0.00021068,2]
[363881012,1748907053396,-3000.0,0.0002107,2]
[363881013,1748907053406,-868.11042015,0.0002107,2]
[363881014,1748907053416,-151.0,0.0002107,2]
[363881015,1748907053425,-151.0,0.0002107,2]
[363881016,1748907053435,-168.789138,0.0002107,2]
[363881017,1748907053445,-168.789138,0.0002107,2]
[363881018,1748907053455,-151.0,0.0002107,2]
[363881019,1748907053465,-151.0,0.0002107,2]
[363881020,1748907053474,-155.722721,0.0002107,2]
[363881021,1748907053484,-3000.0,0.0002108,2]
[363881022,1748907053494,-7038.55,0.00021086,2]
[363881023,1748907053503,-3000.0,0.0002109,2]
[363881024,1748907053512,-151.0,0.00021095,2]
[363881025,1748907053524,-151.0,0.00021095,2]
[363881026,1748907053536,-440.0,0.00021095,2]
[363881027,1748907053546,-1240.54,0.00021095,2]
[363881028,1748907053557,-322.17,0.00021095,2]
[363881029,1748907053567,-2050.09,0.00021095,2]
[363881030,1748907053799,-1442.81,0.00021095,2]
[363881031,1748907053815,-1440.95,0.00021095,2]
[363881032,1748907053824,-2167.57,0.00021095,2]
[363881033,1748907053835,-2580.32,0.00021095,2]
[363881034,1748907053845,-1026.87,0.00021095,2]
[363881035,1748907053855,-565.49,0.00021095,2]
[363881036,1748907053865,-802.81,0.00021095,2]
[363881037,1748907053875,-260.0,0.00021095,2]
[363881038,1748907053885,-675.33,0.00021095,2]
[363881039,1748907053895,-440.0,0.00021095,2]
[363881040,1748907053904,-440.0,0.00021095,2]
[363881041,1748907053915,-504.7,0.00021095,2]
[363881042,1748907053925,-440.0,0.00021095,2]
[363881043,1748907053935,-463.21,0.00021095,2]
[363881044,1748907053945,-3944.08,0.00021095,2]
[363881045,1748907053954,-440.0,0.00021095,2]
[363881046,1748907053964,-440.0,0.00021095,2]
[363881047,1748907053975,-1686.91,0.00021095,2]
[363881048,1748907053984,-2043.01,0.00021095,2]
[363881049,1748907053994,-754.71,0.00021095,2]
[363881050,1748907054004,-797.96,0.00021095,2]
[363881051,1748907054014,-440.0,0.00021095,2]
[363881052,1748907054024,-4845.58,0.00021095,2]
[363881053,1748907054033,-735.8,0.00021095,2]
[363881054,1748907054043,-854.6,0.00021095,2]
[363881055,1748907054052,-1199.73,0.00021095,2]
[363881056,1748907054066,-440.0,0.00021095,2]
[363881057,1748907054076,-440.0,0.00021095,2]
[363881058,1748907054086,-448.65,0.00021095,2]
[363881059,1748907054095,-3000.0,0.000211,2]
[363881060,1748907054105,-3000.0,0.0002111,2]
[363881061,1748907054116,-151.0,0.0002111,2]
[363881062,1748907054126,-151.0,0.0002111,2]
[363881063,1748907054136,-278.777961,0.0002111,2]
[363881064,1748907054147,-3000.0,0.0002112,2]
[363881065,1748907054156,-3000.0,0.0002113,2]
[363881066,1748907054166,-3000.0,0.0002114,2]
[363881067,1748907054176,-151.0,0.0002114,2]
[363881068,1748907054185,-151.0,0.0002114,2]
[363881069,1748907054195,-168.789138,0.0002114,2]
[363881070,1748907054205,-168.789138,0.0002114,2]
[363881071,1748907054214,-151.0,0.0002114,2]
[363881072,1748907054224,-151.0,0.0002114,2]
[363881073,1748907054234,-3000.0,0.0002115,2]
[363881074,1748907054244,-3000.0,0.0002116,2]
[363881075,1748907054254,-3000.0,0.0002117,2]
[363881076,1748907054264,-3000.0,0.0002118,2]
[363881077,1748907054274,-3000.0,0.0002119,2]
[363881078,1748907054284,-3000.0,0.000212,2]
[363881079,1748907054294,-1091.7,0.00021201,2]
[363881080,1748907054303,-52530.75154507,0.00021207,7]
[363881081,1748907054317,-151.0,0.00021207,2]
[363881082,1748907054327,-151.0,0.00021207,2]
[363881083,1748907054338,-151.0,0.00021207,2]
[363881084,1748907054348,-151.0,0.00021207,2]
[363881085,1748907054357,-151.0,0.00021207,2]
[363881086,1748907054367,-151.0,0.00021207,2]
[363881087,1748907054377,-163.04634,0.00021207,2]
[363881088,1748907054387,-151.0,0.00021207,2]
[363881089,1748907054396,-163.04634,0.00021207,2]
[363881090,1748907054406,-151.0,0.00021207,2]
[363881091,1748907054416,-170.456833,0.00021207,2]
[363881092,1748907054426,-165.870742,0.00021207,2]
[363881093,1748907054435,-151.0,0.00021207,2]
[363881094,1748907054445,-151.0,0.00021207,2]
[363881095,1748907054455,-151.0,0.00021207,2]
[363881096,1748907054464,-151.0,0.00021207,2]
[363881097,1748907054472,-151.0,0.00021207,2]
[363881098,1748907054481,-160.494634,0.00021207,2]
[363881099,1748907054490,-151.0,0.00021207,2]
[363881100,1748907054499,-151.0,0.00021207,2]
[363881101,1748907054509,-151.0,0.00021207,2]
[363881102,1748907054518,-151.0,0.00021207,2]
[363881103,1748907054532,-151.0,0.00021207,2]
[363881104,1748907054542,-207.8674,0.00021207,2]
[363881105,1748907054553,-207.8674,0.00021207,2]
[363881106,1748907054564,-151.0,0.00021207,2]
[363881107,1748907054574,-206.847821,0.00021207,2]
[363881108,1748907054584,-206.847821,0.00021207,2]
[363881109,1748907054596,-369.208876,0.00021207,2]
[363881110,1748907054606,-369.208876,0.00021207,2]
[363881111,1748907054616,-412.842266,0.00021207,2]
[363881112,1748907054626,-151.0,0.00021207,2]
[363881113,1748907054635,-412.842266,0.00021207,2]
[363881114,1748907054646,-472.990524,0.00021207,2]
[363881115,1748907054657,-472.990524,0.00021207,2]
[363881116,1748907054666,-286.129156,0.00021207,2]
[363881117,1748907054676,-286.129156,0.00021207,2]
[363881118,1748907054686,-373.158915,0.00021207,2]
[363881119,1748907054695,-373.158915,0.00021207,2]
[363881120,1748907054705,-151.0,0.00021207,2]
[363881121,1748907054714,-3000.0,0.0002121,2]
[363881122,1748907054724,-212.83419937,0.0002121,7]
[363881123,1748907054733,-842.5625,0.0002121,7]
[363881124,1748907054743,-12668.79298183,0.0002121,7]
[363881125,1748907054753,-935.32117229,0.0002121,4]
[363881126,1748907054762,-3000.0,0.0002122,2]
[363881127,1748907054772,-3000.0,0.0002123,2]
[363881128,1748907054782,-3000.0,0.0002124,2]
[363881129,1748907054791,-3000.0,0.0002125,2]
[363881130,1748907054801,-3000.0,0.0002126,2]
[363881131,1748907054813,-151.0,0.0002126,2]
[363881132,1748907054822,-3000.0,0.0002127,2]
[363881133,1748907054832,-500.0,0.00021273,2]
[363881134,1748907054842,-3000.0,0.0002128,2]
[363881135,1748907054852,-265.70492485,0.00021287,2]
[363881136,1748907054862,-3000.0,0.0002129,2]
[363881137,1748907054871,-3000.0,0.000213,2]
[363881138,1748907054880,-1091.7,0.00021301,2]
[363881139,1748907054890,-3000.0,0.0002131,2]
[363881140,1748907054898,-151.0,0.00021314,17]
[363881141,1748907054907,-3000.0,0.0002132,2]
[363881142,1748907054916,-151.0,0.0002132,2]
[363881143,1748907054926,-3000.0,0.0002133,2]
[363881144,1748907054935,-3000.0,0.0002134,2]
[363881145,1748907054945,-151.0,0.0002134,2]
[363881146,1748907054954,-151.0,0.0002134,2]
[363881147,1748907054963,-151.0,0.0002134,2]
[363881148,1748907054973,-151.0,0.0002134,2]
[363881149,1748907054982,-168.789138,0.0002134,2]
[363881150,1748907054991,-168.789138,0.0002134,2]
[363881151,1748907055001,-151.0,0.0002134,2]
[363881152,1748907055010,-275.854429,0.0002134,2]
[363881153,1748907055020,-3000.0,0.0002135,2]
[363881154,1748907055030,-3000.0,0.0002136,2]
[363881155,1748907055039,-204.503085,0.00021369,2]
[363881156,1748907055048,-151.0,0.00021369,2]
[363881157,1748907055061,-440.0,0.00021369,2]
[363881158,1748907055071,-1240.54,0.00021369,2]
[363881159,1748907055081,-2050.09,0.00021369,2]
[363881160,1748907055091,-1442.81,0.00021369,2]
[363881161,1748907055101,-1440.95,0.00021369,2]
[363881162,1748907055111,-2167.57,0.00021369,2]
[363881163,1748907055120,-2580.32,0.00021369,2]
[363881164,1748907055130,-1026.87,0.00021369,2]
[363881165,1748907055140,-565.49,0.00021369,2]
[363881166,1748907055150,-802.81,0.00021369,2]
[363881167,1748907055160,-675.33,0.00021369,2]
[363881168,1748907055170,-376.73,0.00021369,2]
[363881169,1748907055180,-440.0,0.00021369,2]
[363881170,1748907055190,-504.7,0.00021369,2]
[363881171,1748907055200,-440.0,0.00021369,2]
[363881172,1748907055210,-3944.08,0.00021369,2]
[363881173,1748907055221,-440.0,0.00021369,2]
[363881174,1748907055231,-241.45,0.00021369,2]
[363881175,1748907055241,-1686.91,0.00021369,2]
[363881176,1748907055251,-2043.01,0.00021369,2]
[363881177,1748907055261,-754.71,0.00021369,2]
[363881178,1748907055271,-797.96,0.00021369,2]
[363881179,1748907055281,-150.18,0.00021369,2]
[363881180,1748907055291,-2578.52520952,0.00021369,2]
[363881181,1748907055944,-440.0,0.00016438,2]
[363881182,1748907055954,-54.12822256,0.00016438,2]
[363881183,1748907055966,-385.87177744,0.00016438,2]
[363881184,1748907055976,-440.0,0.00016438,2]
[363881185,1748907055986,-66.5990463,0.00016438,2]
[363881186,1748907055998,-373.4009537,0.00016438,2]
[363881187,1748907056008,-440.0,0.00016712,2]
[363881188,1748907056018,-440.0,0.00016712,2]
[363881189,1748907056027,-170.0,0.00016712,2]
[363881190,1748907056037,-95.94867433,0.00016712,2]
[363881191,1748907056049,-344.05132567,0.00016712,2]
[363881192,1748907056060,-440.0,0.00016986,2]
[363881193,1748907056070,-440.0,0.00016986,2]
[363881194,1748907056080,-440.0,0.00016986,2]
[363881195,1748907056089,-440.0,0.0001726,2]
[363881196,1748907056099,-440.0,0.0001726,2]
[363881197,1748907056109,-440.0,0.0001726,2]
[363881198,1748907056118,-440.0,0.00017534,2]
[363881199,1748907056128,-440.0,0.00017534,2]
[363881200,1748907056137,-500.0,0.00017807,2]
[363881201,1748907056148,-500.0,0.00017807,2]
[363881202,1748907056158,-500.0,0.00017807,2]
[363881203,1748907056168,-500.0,0.00017807,2]
[363881204,1748907056178,-500.0,0.00017807,2]
[363881205,1748907056187,-633.69236569,0.00017807,2]
[363881206,1748907056198,-440.0,0.00017808,2]
[363881207,1748907056208,-440.0,0.00017808,2]
[363881208,1748907056218,-160.0,0.00017916,2]
[363881209,1748907056228,-440.0,0.00018082,2]
[363881210,1748907056238,-440.0,0.00018082,2]
[363881211,1748907056248,-440.0,0.00018356,2]
[363881212,1748907056258,-440.0,0.00018356,2]
[363881213,1748907056268,-440.0,0.0001863,2]
[363881214,1748907056278,-449.31,0.0001863,2]
[363881215,1748907056288,-440.0,0.00018904,2]
[363881216,1748907056298,-500.0,0.00019178,2]
[363881217,1748907056309,-500.0,0.00019178,2]
[363881218,1748907056319,-500.0,0.00019178,2]
[363881219,1748907056329,-500.0,0.00019178,2]
[363881220,1748907056339,-249.45456222,0.00019178,2]
[363881221,1748907056349,-500.0,0.00019178,2]
[363881222,1748907056359,-500.0,0.00019178,2]
[363881223,1748907056369,-500.0,0.00019178,2]
[363881224,1748907056379,-500.0,0.00019178,2]
[363881225,1748907056389,-440.0,0.00019178,2]
[363881226,1748907056399,-440.0,0.00019452,2]
[363881227,1748907056409,-440.0,0.00019726,2]
[363881228,1748907056419,-440.0,0.0002,2]
[363881229,1748907056429,-440.0,0.00020273,2]
[363881230,1748907056439,-231.71,0.00020547,2]
[363881231,1748907056448,-2267.05479048,0.00021369,2]
[363881232,1748907056458,-735.8,0.00021369,2]
[363881233,1748907056468,-854.6,0.00021369,2]
[363881234,1748907056479,-1199.73,0.00021369,2]
[363881235,1748907056488,-440.0,0.00021369,2]
[363881236,1748907056497,-440.0,0.00021369,2]
[363881237,1748907056506,-448.65,0.00021369,2]
[363881238,1748907056516,-3000.0,0.0002137,2]
[363881239,1748907056528,-3000.0,0.0002138,2]
[363881240,1748907056538,-3000.0,0.0002139,2]
[363881241,1748907056548,-3000.0,0.000214,2]
[363881242,1748907056558,-1091.7,0.00021401,2]
[363881243,1748907056569,-3000.0,0.0002141,2]
[363881244,1748907056578,-160.0,0.00021415,3]
[363881245,1748907056588,-5094.70234244,0.00021416,2]
[363881246,1748907056598,-935.32117229,0.00021417,5]
[363881247,1748907056608,-3000.0,0.0002142,2]
[363881248,1748907056618,-3000.0,0.0002143,2]
[363881249,1748907056627,-4222.81908,0.0002144,2]
[363881250,1748907056637,-569.0,0.00021452,2]
[363881251,1748907056647,-151.0,0.000215,2]
[363881252,1748907056656,-151.0,0.000215,2]
[363881253,1748907056666,-151.0,0.000215,2]
[363881254,1748907056805,-151.0,0.000215,2]
[363881255,1748907056818,-151.0,0.000215,2]
[363881256,1748907056828,-163.04634,0.000215,2]
[363881257,1748907056838,-151.0,0.000215,2]
[363881258,1748907056848,-163.04634,0.000215,2]
[363881259,1748907056858,-151.0,0.000215,2]
[363881260,1748907056867,-165.870742,0.000215,2]
[363881261,1748907056877,-151.0,0.000215,2]
[363881262,1748907056887,-151.0,0.000215,2]
[363881263,1748907056896,-151.0,0.000215,2]
[363881264,1748907056906,-151.0,0.000215,2]
[363881265,1748907056915,-151.0,0.000215,2]
[363881266,1748907056926,-151.0,0.000215,2]
[363881267,1748907056936,-224.967987,0.000215,2]
[363881268,1748907056945,-224.967987,0.000215,2]
[363881269,1748907056955,-222.689135,0.000215,2]
[363881270,1748907056965,-704.475619,0.000215,2]
[363881271,1748907056974,-704.475619,0.000215,2]
[363881272,1748907056983,-151.0,0.000215,2]
[363881273,1748907056993,-219.616139,0.000215,2]
[363881274,1748907057002,-561.643759,0.000215,2]
[363881275,1748907057011,-561.643759,0.000215,2]
[363881276,1748907057021,-151.0,0.000215,2]
[363881277,1748907057030,-151.0,0.000215,2]
[363881278,1748907057039,-151.0,0.000215,2]
[363881279,1748907057050,-151.0,0.000215,2]
[363881280,1748907057060,-207.8674,0.000215,2]
[363881281,1748907057070,-207.8674,0.000215,2]
[363881282,1748907057079,-151.0,0.000215,2]
[363881283,1748907057089,-206.847821,0.000215,2]
[363881284,1748907057099,-206.847821,0.000215,2]
[363881285,1748907057110,-369.208876,0.000215,2]
[363881286,1748907057120,-369.208876,0.000215,2]
[363881287,1748907057130,-412.842266,0.000215,2]
[363881288,1748907057140,-151.0,0.000215,2]
[363881289,1748907057150,-412.842266,0.000215,2]
[363881290,1748907057160,-472.990524,0.000215,2]
[363881291,1748907057170,-472.990524,0.000215,2]
[363881292,1748907057181,-286.129156,0.000215,2]
[363881293,1748907057191,-286.129156,0.000215,2]
[363881294,1748907057200,-373.158915,0.000215,2]
[363881295,1748907057211,-373.158915,0.000215,2]
[363881296,1748907057220,-151.0,0.000215,2]
[363881297,1748907057228,-1091.7,0.00021501,2]
[363881298,1748907057237,-151.0,0.00021557,19]
[363881299,1748907057247,-1800.0,0.00021599,2]
[363881300,1748907057257,-1000.0,0.000216,2]
[363881301,1748907057266,-6701.88,0.000216,2]
[363881302,1748907057276,-60107.65,0.000216,2]
[363881303,1748907057286,-1091.7,0.00021601,2]
[363881304,1748907057296,-935.32117229,0.00021624,5]
[363881305,1748907057307,-151.0,0.00021643,2]
[363881306,1748907057318,-1240.54,0.00021643,2]
[363881307,1748907057328,-2050.09,0.00021643,2]
[363881308,1748907057338,-1442.81,0.00021643,2]
[363881309,1748907057349,-1440.95,0.00021643,2]
[363881310,1748907057359,-2167.57,0.00021643,2]
[363881311,1748907057368,-2580.32,0.00021643,2]
[363881312,1748907057379,-1026.87,0.00021643,2]
[363881313,1748907057388,-565.49,0.00021643,2]
[363881314,1748907057398,-802.81,0.00021643,2]
[363881315,1748907057411,-675.33,0.00021643,2]
[363881316,1748907057420,-440.0,0.00021643,2]
[363881317,1748907057431,-504.7,0.00021643,2]
[363881318,1748907057441,-482.01,0.00021643,2]
[363881319,1748907057450,-3944.08,0.00021643,2]
[363881320,1748907057460,-240.0,0.00021643,2]
[363881321,1748907057470,-1686.91,0.00021643,2]
[363881322,1748907057480,-2043.01,0.00021643,2]
[363881323,1748907057490,-754.71,0.00021643,2]
[363881324,1748907057499,-797.96,0.00021643,2]
[363881325,1748907057508,-4845.58,0.00021643,2]
[363881326,1748907057518,-735.8,0.00021643,2]
[363881327,1748907057530,-854.6,0.00021643,2]
[363881328,1748907057541,-1199.73,0.00021643,2]
[363881329,1748907057551,-440.0,0.00021643,2]
[363881330,1748907057561,-440.0,0.00021643,2]
[363881331,1748907057571,-448.65,0.00021643,2]
[363881332,1748907057581,-8785.80297612,0.000217,2]
[363881333,1748907057591,-1091.7,0.00021701,2]
[363881334,1748907057601,-5094.70234244,0.00021763,2]
[363881335,1748907057611,-151.0,0.00021792,2]
[363881336,1748907057621,-151.0,0.00021792,2]
[363881337,1748907057631,-3000.0,0.000218,2]
[363881338,1748907057640,-151.0,0.000218,2]
[363881339,1748907057650,-151.0,0.000218,2]
[363881340,1748907057659,-168.789138,0.000218,2]
[363881341,1748907057669,-168.789138,0.000218,2]
[363881342,1748907057679,-151.0,0.000218,2]
[363881343,1748907057688,-151.0,0.00021801,20]
[363881344,1748907057698,-1091.7,0.00021801,2]
[363881345,1748907057707,-935.32117229,0.00021831,6]
[363881346,1748907057716,-1091.7,0.00021901,2]
[363881347,1748907057725,-200.0,0.00021917,2]
[363881348,1748907057735,-500.0,0.00021917,2]
[363881349,1748907057746,-1240.54,0.00021917,2]
[363881350,1748907057756,-2050.09,0.00021917,2]
[363881351,1748907057766,-1442.81,0.00021917,2]
[363881352,1748907057776,-1440.95,0.00021917,2]
[363881353,1748907057786,-2167.57,0.00021917,2]
[363881354,1748907057796,-2580.32,0.00021917,2]
[363881355,1748907057806,-1026.87,0.00021917,2]
[363881356,1748907057816,-565.49,0.00021917,2]
[363881357,1748907057826,-802.81,0.00021917,2]
[363881358,1748907057835,-675.33,0.00021917,2]
[363881359,1748907057845,-440.0,0.00021917,2]
[363881360,1748907057855,-504.7,0.00021917,2]
[363881361,1748907057865,-3944.08,0.00021917,2]
[363881362,1748907057875,-1686.91,0.00021917,2]
[363881363,1748907057885,-2043.01,0.00021917,2]
[363881364,1748907057895,-754.71,0.00021917,2]
[363881365,1748907057904,-797.96,0.00021917,2]
[363881366,1748907057914,-4845.58,0.00021917,2]
[363881367,1748907057923,-735.8,0.00021917,2]
[363881368,1748907057933,-854.6,0.00021917,2]
[363881369,1748907057943,-1199.73,0.00021917,2]
[363881370,1748907057953,-440.0,0.00021917,2]
[363881371,1748907057962,-440.0,0.00021917,2]
[363881372,1748907057972,-500.0,0.00021917,2]
[363881373,1748907057982,-500.0,0.00021917,2]
[363881374,1748907057991,-500.0,0.00021917,2]
[363881375,1748907058000,-500.0,0.00021917,2]
[363881376,1748907058011,-500.0,0.00021917,2]
[363881377,1748907058020,-500.0,0.00021917,2]
[363881378,1748907058029,-500.0,0.00021917,2]
[363881379,1748907058039,-500.0,0.00021917,2]
[363881380,1748907058048,-500.0,0.00021917,2]
[363881381,1748907058057,-500.0,0.00021917,2]
[363881382,1748907058070,-500.0,0.00021917,2]
[363881383,1748907058079,-448.65,0.00021917,2]
[363881384,1748907058089,-151.0,0.00021918,2]
[363881385,1748907058099,-151.0,0.00021918,2]
[363881386,1748907058109,-151.0,0.00021918,2]
[363881387,1748907058119,-151.0,0.00021918,2]
[363881388,1748907058129,-261.362528,0.00021918,2]
[363881389,1748907058139,-150.0,0.00021918,2]
[363881390,1748907058148,-500.0,0.00021918,2]
[363881391,1748907058158,-500.0,0.00021918,2]
[363881392,1748907058168,-500.0,0.00021918,2]
[363881393,1748907058178,-500.0,0.00021918,2]
[363881394,1748907058187,-500.0,0.00021918,2]
[363881395,1748907058197,-500.0,0.00021918,2]
[363881396,1748907058206,-500.0,0.00021918,2]